bitfinex/quotes_ETHUSD_20220112
["timestamp","ask_amount","ask_price","bid_price","bid_amount"]
[1642023511290,0.00113684,3374.9,3374.8,3.18559945]
[1642023512493,0.00113684,3374.9,3374.8,3.92632935]
[1642023512934,0.00113684,3374.9,3374.8,3.18566935]
[1642023514437,0.00113684,3374.9,3374.8,3.19197125]
[1642023514837,0.00113684,3374.9,3374.8,3.93257125]
[1642023515040,0.00113684,3374.9,3374.8,4.23257125]
[1642023516045,0.00113684,3374.9,3374.8,5.52001257]
[1642023516241,1.27903181,3375.3,3375.0,0.74062]
[1642023516508,1.27903181,3375.3,3375.0,1.33686]
[1642023516696,0.00170527,3375.2,3375.0,1.33686]
[1642023516897,0.00170527,3375.2,3374.9,1.0]
[1642023517096,0.00113685,3375.1,3374.8,1.45124135]
[1642023517297,0.00113685,3375.1,3374.8,1.75124135]
[1642023517501,1.28481765,3374.9,3374.8,2.78825135]
[1642023517701,1.28481765,3374.9,3374.8,2.49196135]
[1642023517899,1.28481765,3374.9,3374.8,4.97330415]
[1642023518499,1.28481765,3374.9,3374.8,2.2283647]
[1642023518704,1.40321765,3374.9,3374.8,0.0063019]
[1642023519300,6.05321765,3374.9,3374.8,0.0063019]
[1642023519499,0.74094,3374.7,3374.3,2.63510159]
[1642023519700,0.1184,3374.8,3374.3,2.63510159]
[1642023519901,0.1184,3374.6,3374.4,0.00284211]
[1642023520158,0.1184,3374.8,3374.4,0.00284211]
[1642023520764,0.1184,3374.8,3374.5,0.740879]
[1642023521162,0.1184,3374.8,3374.6,0.00170527]
[1642023522164,5.99226418,3374.7,3374.6,0.00170527]
[1642023522364,2.19226418,3374.7,3374.3,1.7879288]
[1642023522565,2.19226418,3374.7,3374.4,0.00113684]
[1642023523567,2.33524246,3374.8,3374.5,0.7409396]
[1642023523774,2.33524246,3374.8,3374.6,0.03954744]
[1642023523992,2.33524246,3374.8,3374.5,1.0409396]
[1642023524392,2.33524246,3374.8,3374.6,0.00551882]
[1642023524592,2.21684246,3374.8,3374.6,0.00551882]
[1642023525598,2.21684246,3374.8,3374.6,1.48722762]
[1642023525800,1.28481765,3374.9,3374.6,1.48722762]
[1642023525801,1.47675719,3374.7,3374.6,1.48722762]
[1642023526606,2.21797931,3374.8,3374.6,1.48722762]
[1642023527404,2.21797931,3374.8,3374.6,2.48714732]
[1642023527643,2.21797931,3374.8,3374.6,1.48714732]
[1642023527841,2.21797931,3374.8,3374.6,2.48714732]
[1642023528242,0.00113685,3374.8,3374.6,2.48714732]
[1642023528442,0.00113685,3374.8,3374.6,1.48714732]
[1642023528646,0.00113685,3374.8,3374.6,2.48714732]
[1642023529044,0.00113685,3374.8,3374.6,1.48714732]
[1642023529347,0.00113685,3374.8,3374.6,3.07974732]
[1642023529547,0.00113685,3374.8,3374.7,0.3]
[1642023529947,0.00113685,3374.8,3374.7,1.3]
[1642023530948,0.00113685,3374.8,3374.7,0.3]
[1642023531148,0.00113685,3374.8,3374.7,1.3]
[1642023531807,1.28855749,3374.8,3374.7,1.3]
[1642023532003,1.28855749,3374.8,3374.7,0.3]
[1642023532203,0.00113685,3374.8,3374.7,1.3]
[1642023532602,0.00113685,3374.8,3374.7,0.3]
[1642023534608,0.00113685,3374.8,3374.7,0.30551649]
[1642023535945,1.47869329,3374.8,3374.7,0.30551649]
[1642023537149,1.47869329,3374.8,3374.7,0.00551649]
[1642023538348,0.00113685,3374.8,3374.7,0.00551649]
[1642023538547,0.00113685,3374.8,3374.7,0.30551649]
[1642023543339,1.48168296,3374.8,3374.7,0.30551649]
[1642023545749,0.00113685,3374.8,3374.7,0.30551649]
[1642023545948,2.21797931,3374.8,3374.7,0.30551649]
[1642023546392,2.21797931,3374.8,3374.4,2.96424534]
[1642023546393,2.21797931,3374.8,3374.4,0.00113684]
[1642023546593,4.65,3374.6,3374.1,1.4818881]
[1642023546795,0.1184,3374.5,3374.1,1.4818881]
[1642023547199,0.74105,3374.4,3374.1,1.4818881]
[1642023547400,0.1184,3374.3,3374.1,1.4818881]
[1642023547801,2.33524246,3374.3,3374.1,2.9638475]
[1642023548400,2.33524246,3374.3,3374.1,1.7819594]
[1642023548903,2.54185959,3374.2,3374.1,1.7819594]
[1642023549501,2.54185959,3374.2,3374.1,3.52460287]
[1642023549902,1.47850705,3374.2,3374.1,3.52460287]
[1642023550751,4.02201218,3374.3,3374.1,3.52460287]
[1642023550951,4.02201218,3374.3,3374.1,3.22460287]
[1642023551150,4.02201218,3374.3,3374.2,0.00113685]
[1642023553652,4.02201218,3374.3,3374.1,0.00170527]
[1642023553892,4.24104,3374.2,3374.1,0.00170527]
[1642023554092,0.74104,3374.2,3374.1,0.00170527]
[1642023554694,0.74104,3374.2,3374.0,0.7393816]
[1642023554994,0.72504,3374.2,3374.0,0.7393816]
[1642023555803,1.38092524,3374.1,3374.0,0.7393816]
[1642023555999,1.38092524,3374.1,3373.9,1.48183]
[1642023557201,2.54185959,3374.0,3373.9,1.48183]
[1642023557398,2.54185959,3374.0,3373.9,1.77823]
[1642023557655,2.54185959,3374.0,3373.9,1.77936685]
[1642023557849,2.54185959,3374.0,3373.9,1.48296685]
[1642023558849,6.87970126,3374.1,3373.9,0.00113685]
[1642023559053,6.87970126,3374.1,3373.9,0.74223685]
[1642023559452,0.00205594,3374.0,3373.9,0.00637479]
[1642023559751,0.00205594,3374.0,3372.8,2.22329]
[1642023559752,2.74108142,3374.0,3372.8,2.22329]
[1642023559951,2.74108142,3374.0,3372.7,6.24]
[1642023559952,17.28,3373.9,3372.7,6.24]
[1642023560152,0.9904,3373.9,3372.9,0.00568424]
[1642023560549,0.9904,3373.9,3373.4,1.46264462]
[1642023560951,0.9904,3373.9,3373.5,0.0022737]
[1642023561150,0.7412,3373.6,3373.5,0.7434637]
[1642023561602,2.95705643,3373.6,3373.5,0.7434637]
[1642023562406,2.95705643,3373.6,3373.5,0.0022737]
[1642023562604,2.21585643,3373.6,3373.5,0.0022737]
[1642023563005,4.75771602,3373.6,3373.5,0.0022737]
[1642023563202,2.66025959,3373.6,3373.5,0.0022737]
[1642023563403,2.66025959,3373.6,3372.8,0.00625266]
[1642023563603,1.53207716,3373.2,3373.1,1.35260403]
[1642023563803,0.1184,3373.5,3373.1,1.35260403]
[1642023564006,0.1184,3373.5,3373.1,1.35715142]
[1642023564202,0.1184,3373.5,3373.2,0.00397897]
[1642023564605,0.74125,3373.4,3373.2,0.00397897]
[1642023564805,2.01620774,3373.4,3373.2,0.00397897]
[1642023565005,2.01620774,3373.4,3373.2,0.74522897]
[1642023565455,4.55806733,3373.4,3373.3,0.00341054]
[1642023566751,4.67646733,3373.4,3373.3,0.00341054]
[1642023566951,4.67646733,3373.4,3373.0,0.00511581]
[1642023567150,4.67646733,3373.4,3372.8,0.00625266]
[1642023567349,4.55806733,3373.4,3373.2,1.14087328]
[1642023567750,4.55806733,3373.4,3373.3,0.00341054]
[1642023567948,4.67646733,3373.4,3373.3,0.00341054]
[1642023568350,2.66025959,3373.4,3373.3,0.00341054]
[1642023568548,2.54185959,3373.4,3373.3,0.00341054]
[1642023568749,0.00233121,3373.6,3373.3,0.00341054]
[1642023569393,0.00473378,3373.4,3373.3,0.00823063]
[1642023570598,0.74599378,3373.4,3373.3,0.00823063]
[1642023570805,0.74599378,3373.4,3373.3,1.00823063]
[1642023571098,0.74599378,3373.4,3373.3,0.00823063]
[1642023571899,0.00473378,3373.4,3373.3,0.00823063]
[1642023573148,0.00473378,3373.4,3373.3,1.00823063]
[1642023574648,0.74599378,3373.4,3373.3,1.00823063]
[1642023575450,0.74599378,3373.4,3373.3,0.00823063]
[1642023576792,0.00473378,3373.4,3373.3,0.00823063]
[1642023579299,0.00473378,3373.4,3373.2,3.4969903]
[1642023579499,4.6684,3373.3,3373.2,1.14087328]
[1642023579697,0.1184,3373.3,3373.2,1.14087328]
[1642023579998,0.74601378,3373.4,3373.2,1.14087328]
[1642023579999,0.00473378,3373.4,3373.2,1.14087328]
[1642023580753,6.55473378,3373.4,3370.8,17.3167518]
[1642023580954,6.55473378,3373.4,3372.6,1.0]
[1642023580955,0.01223672,3373.2,3372.6,1.0]
[1642023581252,0.01223672,3373.2,3372.9,1.1217276]
[1642023581451,0.01223672,3373.2,3372.9,1.8629981]
[1642023581649,0.00473378,3373.4,3373.1,0.74128]
[1642023581850,1.34350539,3373.3,3373.1,0.74128]
[1642023582453,0.00473378,3373.4,3373.1,0.74128]
[1642023582659,0.00473378,3373.4,3373.1,1.4825389]
[1642023582854,0.00473378,3373.4,3373.1,1.7825389]
[1642023583055,1.46844014,3373.6,3373.3,0.0501414]
[1642023583256,2.21585643,3373.9,3373.6,0.03958038]
[1642023583458,2.21585643,3373.9,3373.8,1.09644874]
[1642023583654,4.21302416,3374.0,3373.8,1.09644874]
[1642023583655,1.87123559,3374.0,3373.8,1.09644874]
[1642023583897,0.00341054,3373.9,3373.8,1.0409204]
[1642023584099,1.87123559,3374.0,3373.9,1.21641387]
[1642023584298,1.82123559,3374.0,3373.9,1.21641387]
[1642023584703,0.35,3374.0,3373.9,1.21641387]
[1642023584901,0.35,3374.0,3373.9,2.21641387]
[1642023585102,0.35,3374.0,3373.9,1.51641387]
[1642023585303,0.35,3374.0,3373.9,5.33920834]
[1642023585805,2.21585643,3374.8,3374.5,0.74089]
[1642023586006,2.21585643,3374.8,3374.6,1.22166231]
[1642023586202,0.00454739,3374.7,3374.6,1.22166231]
[1642023586803,0.00454739,3374.7,3374.6,1.96253281]
[1642023587205,0.00454739,3374.7,3374.6,2.96253281]
[1642023587644,4.65454739,3374.7,3374.6,0.10695264]
[1642023587843,4.66722998,3374.7,3374.5,1.481741]
[1642023588244,0.00397896,3374.6,3374.5,1.481741]
[1642023588850,1.20951434,3374.6,3374.5,1.481741]
[1642023589248,1.20951434,3374.6,3374.5,2.481741]
[1642023589449,1.20951434,3374.6,3374.5,1.481741]
[1642023589651,1.20951434,3374.6,3374.4,1.50528308]
[1642023589950,3.12181054,3374.5,3374.4,1.50528308]
[1642023590153,0.12181054,3374.5,3374.4,1.50528308]
[1642023591393,3.82181054,3374.5,3374.4,1.50528308]
[1642023591594,3.82181054,3374.5,3374.3,0.7410707]
[1642023591595,4.56287054,3374.5,3374.3,0.7410707]
[1642023591998,0.00284212,3374.4,3374.3,0.7410707]
[1642023592798,0.00284212,3374.4,3374.3,2.82593773]
[1642023594398,0.00284212,3374.4,3374.3,2.83044246]
[1642023596147,0.00284212,3374.4,3374.3,0.74557543]
[1642023596351,4.95284212,3374.4,3374.3,0.74557543]
[1642023597348,4.95284212,3374.4,3374.3,0.00450473]
[1642023597549,5.69394212,3374.4,3374.3,0.00450473]
[1642023598448,0.74394212,3374.4,3374.3,0.00450473]
[1642023598651,0.00284212,3374.4,3374.3,0.00450473]
[1642023599505,2.20083493,3374.5,3374.2,1.74607805]
[1642023599707,2.20083493,3374.5,3374.4,1.28030133]
[1642023599906,4.98372416,3375.0,3374.4,2.02118133]
[1642023599907,0.00227369,3374.8,3374.4,2.02118133]
[1642023600110,0.00227369,3374.8,3374.4,3.02118133]
[1642023600307,0.00170527,3374.7,3374.4,3.02118133]
[1642023600705,0.00113684,3374.6,3374.4,3.02118133]
[1642023600905,0.00113684,3374.6,3374.5,0.740795]
[1642023601107,0.00284211,3374.9,3374.6,0.74089]
[1642023601307,5.1316,3375.1,3374.6,0.74089]
[1642023601517,5.1316,3375.1,3374.7,2.10006983]
[1642023601810,4.88444211,3375.1,3374.7,2.10006983]
[1642023602009,0.74091,3375.0,3374.7,2.10006983]
[1642023602209,2.34840757,3375.3,3374.8,1.4817888]
[1642023602510,2.34840757,3375.3,3374.8,0.7409]
[1642023602511,0.00170527,3375.2,3374.8,0.7409]
[1642023602951,0.00113685,3375.1,3374.7,1.73708657]
[1642023603550,0.00113685,3375.1,3374.7,2.73708657]
[1642023603951,0.00113685,3375.1,3374.9,0.7408246]
[1642023604451,0.00113685,3375.1,3374.9,0.74577289]
[1642023606056,0.00113685,3375.1,3374.9,1.74577289]
[1642023606899,0.00113685,3375.1,3374.9,0.00494829]
[1642023607095,6.3184,3375.0,3374.9,0.00494829]
[1642023607696,0.1184,3375.0,3374.9,0.00494829]
[1642023607892,0.85936,3375.0,3374.9,0.00494829]
[1642023609198,0.85936,3375.0,3374.7,2.68854314]
[1642023609402,3.79914226,3375.0,3374.9,0.00494829]
[1642023609598,3.79914226,3375.0,3374.7,2.09174754]
[1642023609798,3.79914226,3375.0,3374.8,0.740966]
[1642023610460,0.85936,3375.0,3374.8,1.740966]
[1642023610656,0.85936,3375.0,3374.8,0.740966]
[1642023611058,0.85936,3375.0,3374.7,2.09174754]
[1642023611661,2.20308611,3374.9,3374.7,2.09174754]
[1642023611860,0.74102,3374.8,3374.7,2.09174754]
[1642023612260,0.74102,3374.8,3374.7,2.09288438]
[1642023613462,2.94410611,3374.8,3374.7,2.06104858]
[1642023614316,0.74102,3374.8,3374.7,2.06104858]
[1642023614513,0.74102,3374.8,3374.7,2.0651405]
[1642023615317,0.74102,3374.8,3374.7,0.00522876]
[1642023616116,5.44410611,3374.8,3374.7,0.00522876]
[1642023617519,7.98618907,3374.8,3374.7,0.00522876]
[1642023617746,5.48618907,3374.8,3374.7,0.00522876]
[1642023618354,2.54208296,3374.8,3374.5,1.16257162]
[1642023619355,2.54208296,3374.8,3374.7,0.00409192]
[1642023621496,1.46624244,3374.8,3374.7,0.00409192]
[1642023621697,1.46624244,3374.8,3374.7,0.74504192]
[1642023621901,1.46624244,3374.8,3374.7,1.74504192]
[1642023622302,2.93937671,3375.0,3374.7,1.74504192]
[1642023622702,0.00113685,3374.9,3374.7,1.74504192]
[1642023623503,0.00113685,3374.9,3374.8,0.7409144]
[1642023623704,2.54321981,3374.9,3374.8,0.7409144]
[1642023624506,2.54321981,3374.9,3374.8,0.74502431]
[1642023625009,2.54321981,3374.9,3374.6,1.43601031]
[1642023625252,0.74102,3374.8,3374.6,2.43601031]
[1642023626053,0.74102,3374.8,3374.6,1.43601031]
[1642023626249,0.74102,3374.8,3374.5,1.90345162]
[1642023626451,5.48262972,3374.8,3374.5,1.90345162]
[1642023627251,4.74160972,3374.8,3374.5,1.90345162]
[1642023627452,2.19952676,3374.7,3374.6,1.4818924]
[1642023627654,2.19952676,3374.7,3374.6,2.4818924]
[1642023628051,2.19952676,3374.7,3374.6,1.4818924]
[1642023628252,2.19952676,3374.7,3374.6,0.7409724]
[1642023628452,2.19952676,3374.8,3374.6,0.7409724]
[1642023628653,2.19952676,3374.8,3374.5,1.90345162]
[1642023628911,2.19952676,3374.8,3374.5,2.90345162]
[1642023629515,2.19952676,3374.8,3374.6,1.4819522]
[1642023629716,2.19952676,3374.7,3374.6,1.4819522]
[1642023629917,2.19952676,3374.7,3374.6,2.4819522]
[1642023630517,4.74274657,3374.9,3374.6,2.4819522]
[1642023630718,5.48369657,3374.9,3374.6,2.4819522]
[1642023631018,5.48369657,3374.9,3374.6,3.2228822]
[1642023631321,0.74208685,3374.9,3374.6,3.2228822]
[1642023632020,2.54208296,3374.8,3374.6,3.2228822]
[1642023632853,0.74097,3374.8,3374.6,3.2228822]
[1642023633254,0.74097,3374.8,3374.6,2.4819522]
[1642023635253,0.74207685,3374.9,3374.6,2.4819522]
[1642023636493,0.74207685,3374.9,3374.6,3.2229022]
[1642023636693,2.54208296,3374.8,3374.6,3.2229022]
[1642023637297,2.49208296,3374.8,3374.6,3.2229022]
[1642023638203,0.74096,3374.8,3374.6,2.2229022]
[1642023638600,0.74096,3374.8,3374.6,1.4819522]
[1642023638801,0.74096,3374.8,3373.5,1.1611]
[1642023638802,1.04096,3374.8,3373.5,1.1611]
[1642023639000,1.04096,3374.8,3373.9,0.74113]
[1642023639001,0.1184,3374.7,3373.9,0.74113]
[1642023639400,1.09745769,3374.0,3373.9,0.74113]
[1642023639599,1.21585769,3374.0,3373.9,3.0053561]
[1642023639801,1.21585769,3374.0,3373.9,3.00990349]
[1642023640252,1.21585769,3374.0,3373.9,2.26877349]
[1642023640453,1.09745769,3374.0,3373.9,2.26877349]
[1642023640859,2.20883382,3374.1,3373.9,2.26877349]
[1642023641054,1.46768382,3374.1,3373.9,2.26877349]
[1642023641261,1.46768382,3374.1,3374.0,0.00397897]
[1642023641853,2.19952676,3374.3,3374.0,0.30397897]
[1642023642053,2.19952676,3374.3,3374.0,1.30397897]
[1642023642255,2.19952676,3374.2,3374.1,0.00341054]
[1642023642655,2.19952676,3374.2,3374.1,0.74441474]
[1642023643057,2.19952676,3374.2,3374.1,1.04441474]
[1642023643255,1.47138796,3374.4,3374.1,1.04441474]
[1642023643459,1.47138796,3374.4,3374.1,1.04445054]
[1642023643656,1.47138796,3374.4,3374.2,0.00284212]
[1642023644093,1.47138796,3374.4,3374.2,0.74387662]
[1642023644498,1.47138796,3374.4,3374.3,0.0022737]
[1642023644699,3.14105,3374.4,3374.3,0.0022737]
[1642023645699,0.74105,3374.4,3374.3,0.0022737]
[1642023647203,2.94057676,3374.4,3374.3,0.0022737]
[1642023647403,2.94057676,3374.4,3374.2,0.73710024]
[1642023648045,0.74105,3374.4,3374.2,0.73710024]
[1642023648647,2.94098259,3374.4,3374.2,0.73710024]
[1642023649448,2.94098259,3374.4,3374.3,0.00361946]
[1642023651253,5.28677255,3374.4,3374.3,0.00361946]
[1642023653300,5.40517255,3374.4,3374.3,0.00361946]
[1642023653500,5.40517255,3374.4,3373.9,0.74109]
[1642023653501,0.99550783,3374.3,3373.9,0.74109]
[1642023653701,0.1184,3374.3,3373.9,0.74109]
[1642023653902,2.34578996,3374.4,3374.0,0.00170527]
[1642023653903,0.74109,3374.2,3374.0,0.00170527]
[1642023654300,0.74109,3374.2,3374.0,0.74279527]
[1642023654801,2.94161693,3374.2,3374.1,0.00113684]
[1642023655002,2.94161693,3374.2,3374.1,0.74222644]
[1642023657752,5.48386514,3374.2,3374.1,0.74222644]
[1642023658553,5.78386514,3374.2,3374.1,0.00113684]
[1642023658753,9.20226514,3374.2,3374.1,0.00113684]
[1642023659003,5.90226514,3374.2,3373.7,0.00341054]
[1642023659199,0.74123,3374.0,3373.7,0.00341054]
[1642023659399,0.1184,3373.9,3373.7,0.00341054]
[1642023659803,1.91816879,3373.8,3373.7,0.00341054]
[1642023660507,2.21816879,3373.8,3373.7,0.00341054]
[1642023660705,9.52139584,3373.8,3373.7,0.00341054]
[1642023660905,6.55,3373.7,3372.4,1.84917845]
[1642023661104,12.64210783,3373.7,3371.9,2.40777027]
[1642023661304,20.25440783,3373.7,3373.5,0.00113685]
[1642023661510,1.31331208,3373.2,3372.2,0.74142]
[1642023661704,0.1185,3373.1,3372.2,0.74142]
[1642023661904,0.74138,3373.0,3372.7,0.7414104]
[1642023662105,0.74138,3373.0,3372.5,1.4827503]
[1642023662106,0.4186,3373.5,3372.5,1.4827503]
[1642023662307,0.1184,3373.6,3372.8,0.00397896]
[1642023662504,13.0049,3373.7,3372.6,0.00511581]
[1642023662505,12.8233,3373.7,3372.6,0.00511581]
[1642023662755,0.89044816,3373.2,3372.6,0.00511581]
[1642023662960,3.11233987,3373.2,3372.9,1.89456738]
[1642023663158,2.22189171,3373.2,3372.9,1.89456738]
[1642023663356,2.22189171,3373.2,3373.0,0.00284211]
[1642023663557,0.1184,3373.5,3373.0,0.42771401]
[1642023663757,0.4184,3373.5,3373.0,0.42771401]
[1642023663957,0.4184,3373.5,3373.1,0.00227369]
[1642023664260,1.46124917,3373.4,3373.1,0.00227369]
[1642023664457,1.46124917,3373.4,3373.0,0.00284211]
[1642023664757,3.44168449,3373.4,3373.1,0.74124]
[1642023664957,3.44168449,3373.4,3373.2,0.7412234]
[1642023665161,3.44168449,3373.4,3373.2,0.74292867]
[1642023665360,2.72171532,3373.4,3373.3,0.00113684]
[1642023667003,2.62171532,3373.4,3373.3,0.00113684]
[1642023667405,1.88043532,3373.4,3373.3,0.00113684]
[1642023667806,1.99883532,3373.4,3373.3,0.00113684]
[1642023669414,0.1184,3373.4,3373.3,0.00113684]
[1642023670259,3.01867364,3373.5,3373.3,0.78697876]
[1642023670260,2.71867364,3373.5,3373.3,0.78697876]
[1642023670456,1.46124917,3373.5,3373.3,0.04577876]
[1642023670653,1.46124917,3373.5,3373.3,0.00113684]
[1642023671459,2.20250917,3373.5,3373.3,0.00113684]
[1642023671655,1.04126,3373.5,3373.3,0.00113684]
[1642023672756,2.26686759,3373.5,3373.3,0.00113684]
[1642023673759,1.96686759,3373.5,3373.3,0.00113684]
[1642023675011,3.42811676,3373.5,3373.3,0.00113684]
[1642023675215,2.68685676,3373.5,3373.3,0.00113684]
[1642023675817,1.46124917,3373.5,3373.3,0.00113684]
[1642023676215,3.12581753,3373.6,3373.3,0.03895114]
[1642023676514,3.12581753,3373.6,3373.4,0.741191]
[1642023676716,4.30849731,3373.6,3373.4,0.741191]
[1642023676914,5.04974731,3373.6,3373.4,0.741191]
[1642023677315,3.58849814,3373.6,3373.4,0.741191]
[1642023678550,5.04974731,3373.6,3373.3,0.54276399]
[1642023678951,0.00113684,3373.5,3373.3,0.54276399]
[1642023679351,2.54399081,3373.5,3372.9,1.48243]
[1642023679553,3.28526081,3373.5,3373.3,1.4824284]
[1642023680460,6.19161161,3373.5,3373.3,1.4824284]
[1642023680755,6.19161161,3373.5,3373.1,0.7413221]
[1642023680957,7.03241161,3373.5,3373.0,0.00170527]
[1642023681154,0.1184,3373.4,3373.0,0.00170527]
[1642023681418,0.1184,3373.4,3372.8,1.4825]
[1642023681419,0.74135,3373.2,3372.9,0.0022737]
[1642023681606,0.33131868,3373.0,3372.9,0.7436304]
[1642023682007,0.33131868,3373.0,3372.9,1.0436304]
[1642023682607,2.87417265,3373.0,3372.9,1.0436304]
[1642023684015,2.54285397,3373.0,3372.9,2.0436304]
[1642023684213,0.00113684,3373.5,3372.9,2.0436304]
[1642023684214,0.00113684,3373.5,3373.1,0.79008186]
[1642023684415,0.00113684,3373.5,3373.2,1.4820437]
[1642023684611,0.00113684,3373.5,3373.2,2.7820437]
[1642023685014,0.00113684,3373.5,3373.3,1.91223057]
[1642023685859,0.00113684,3373.5,3373.3,2.91223057]
[1642023686057,0.00113684,3373.5,3373.3,1.91223057]
[1642023687859,0.00113684,3373.5,3373.2,2.5230437]
[1642023687860,0.13053624,3373.4,3373.2,0.7341595]
[1642023688160,0.13053624,3373.4,3371.5,0.74155]
[1642023688161,23.83,3373.2,3371.5,0.74155]
[1642023688362,0.01252096,3372.5,3371.5,0.74155]
[1642023688561,0.1186,3372.4,3371.6,0.0073895]
[1642023689220,2.31176263,3372.3,3371.9,3.25357456]
[1642023689421,2.31176263,3372.3,3371.6,0.0073895]
[1642023689422,1.14546837,3372.1,3371.6,0.0073895]
[1642023689617,1.14546837,3372.1,3370.0,3.7949]
[1642023689618,0.99950783,3371.9,3370.5,2.59818982]
[1642023689817,0.99950783,3371.9,3369.9,6.24]
[1642023689818,0.1186,3371.8,3369.9,6.24]
[1642023690017,0.1186,3371.8,3370.6,0.01307374]
[1642023690224,3.9223,3371.8,3370.6,0.01307374]
[1642023690421,3.8037,3371.8,3371.1,1.2832767]
[1642023690624,0.74161,3371.8,3371.6,1.86021174]
[1642023690821,1.5,3371.9,3371.6,1.86021174]
[1642023691023,1.5,3371.9,3371.7,0.00682108]
[1642023691427,1.5,3371.9,3371.7,1.48967108]
[1642023691629,1.5,3371.9,3371.8,0.3]
[1642023691827,1.5,3371.9,3371.8,0.30625265]
[1642023692026,1.5,3371.9,3371.8,1.30625265]
[1642023692226,1.5,3371.9,3371.8,4.05625265]
[1642023692427,1.5,3371.9,3371.8,5.05625265]
[1642023693050,1.5,3371.9,3371.8,1.30625265]
[1642023693457,2.39077866,3371.9,3371.8,1.30625265]
[1642023693955,1.45506457,3372.7,3371.8,1.60625265]
[1642023694155,7.85042149,3373.1,3371.8,1.60625265]
[1642023694156,1.45506457,3373.0,3372.2,1.4825546]
[1642023694357,1.45506457,3373.0,3372.5,0.74122]
[1642023694755,1.45506457,3373.0,3372.7,1.43653798]
[1642023695155,0.00113685,3373.1,3372.7,2.43653798]
[1642023695360,0.00113685,3373.1,3372.8,0.04075862]
[1642023695557,0.00113685,3373.1,3372.9,0.74114]
[1642023695758,0.00113685,3373.1,3372.9,0.78293502]
[1642023695960,0.00113685,3373.1,3372.9,2.04114]
[1642023696513,0.00113685,3373.1,3373.0,2.67227291]
[1642023696712,0.00113685,3373.1,3372.9,2.04114]
[1642023696914,1.45506457,3373.3,3372.9,2.04114]
[1642023696915,1.45506457,3373.3,3373.0,0.74105]
[1642023697111,1.45506457,3373.3,3373.1,0.741042]
[1642023697314,1.45506457,3373.3,3373.1,1.041042]
[1642023697512,2.34540703,3373.6,3373.1,1.041042]
[1642023697915,0.00227369,3373.5,3373.3,2.9642865]
[1642023698113,0.00227369,3373.5,3373.4,1.0]
[1642023698413,1.45506457,3373.6,3373.4,1.7410933]
[1642023698620,1.45506457,3373.7,3373.5,2.50230828]
[1642023698814,1.45506457,3373.7,3373.5,1.0614]
[1642023699014,1.45847511,3373.7,3373.6,1.0]
[1642023699213,2.19187376,3373.9,3373.6,1.0]
[1642023699413,2.19187376,3373.9,3373.7,2.2226947]
[1642023699713,0.1184,3374.5,3373.8,0.03889272]
[1642023699714,2.19187376,3374.3,3373.8,0.03889272]
[1642023699912,2.19187376,3374.3,3373.8,2.2227113]
[1642023700149,0.00170527,3374.0,3373.8,3.2227113]
[1642023700355,0.00170527,3374.0,3373.8,3.5227113]
[1642023700558,2.19187376,3374.3,3373.9,2.06687111]
[1642023700755,2.19187376,3374.3,3374.1,0.7409368]
[1642023700954,0.00284212,3374.2,3374.1,1.0409368]
[1642023701154,0.00284212,3374.2,3374.1,2.0409368]
[1642023702355,0.00284212,3374.2,3373.9,3.54864971]
[1642023702754,0.0022737,3374.1,3373.9,3.54864971]
[1642023703258,0.00170527,3374.0,3373.9,3.54864971]
[1642023703655,0.00170527,3374.0,3373.9,4.28952971]
[1642023703907,0.00170527,3374.0,3373.9,3.54864971]
[1642023704300,0.00170527,3374.0,3373.9,4.84864971]
[1642023704703,0.00170527,3374.0,3373.9,1.4817786]
[1642023704906,0.00170527,3374.0,3373.8,1.4818059]
[1642023705104,0.1184,3373.9,3373.8,1.4818059]
[1642023705307,0.11953685,3373.9,3373.8,1.4818059]
[1642023705507,0.00113685,3373.9,3373.8,1.4818059]
[1642023705911,0.00113685,3373.9,3373.8,3.41359323]
[1642023706209,0.00113685,3373.9,3373.8,4.71359323]
[1642023707211,0.00113685,3373.9,3373.8,5.45448323]
[1642023707409,0.00113685,3373.9,3373.8,5.70448323]
[1642023707658,2.54238717,3374.2,3373.9,0.74085]
[1642023707861,2.54238717,3374.2,3374.0,0.74085]
[1642023708067,0.00113685,3374.1,3374.0,0.74085]
[1642023708263,0.00113685,3374.1,3373.9,3.9633964]
[1642023708665,2.54238717,3374.4,3373.9,3.9633964]
[1642023708865,2.54238717,3374.4,3374.1,0.74081]
[1642023709065,0.00113684,3374.3,3374.1,2.96327]
[1642023709265,0.00113684,3374.3,3374.1,2.22246]
[1642023709467,0.00113684,3374.3,3374.2,1.0]
[1642023709667,0.00113684,3374.3,3374.1,3.22246]
[1642023710565,0.00113684,3374.3,3374.1,3.9632649]
[1642023712401,0.00113684,3374.3,3374.1,2.9632649]
[1642023713203,1.53248216,3374.8,3374.1,2.9632649]
[1642023713404,1.53248216,3374.8,3374.4,1.4816797]
[1642023713705,0.0022737,3374.7,3374.6,0.74084]
[1642023713902,0.0022737,3374.7,3374.6,2.6530579]
[1642023713903,2.54466087,3374.7,3374.6,2.6530579]
[1642023714106,2.54466087,3374.7,3374.6,1.9122179]
[1642023715154,2.19187376,3375.0,3374.6,2.6382179]
[1642023715554,0.4153207,3375.0,3374.7,1.74065]
[1642023715857,0.4153207,3375.3,3374.8,1.25238576]
[1642023716262,0.00170527,3375.2,3374.9,0.74057]
[1642023716457,0.4153207,3375.3,3374.9,0.74057]
[1642023716660,0.4153207,3375.3,3375.0,0.00113684]
[1642023716857,3.81302416,3375.4,3375.0,0.00113684]
[1642023717058,2.93978226,3375.6,3375.0,0.00113684]
[1642023717258,0.1184,3376.0,3375.0,0.00113684]
[1642023717259,0.1184,3376.0,3375.0,2.22273684]
[1642023717462,0.00170527,3375.5,3375.0,2.96327684]
[1642023717660,0.00170527,3375.5,3375.2,0.7406]
[1642023717860,0.00113685,3375.4,3375.3,0.04264476]
[1642023718062,0.00113685,3375.4,3375.2,1.7406]
[1642023718263,0.00113685,3375.4,3375.2,0.7406]
[1642023718462,0.00113685,3375.4,3375.2,1.7406]
[1642023718914,0.00113685,3375.4,3375.2,3.9622307]
[1642023719306,0.00113685,3375.4,3375.2,4.7027807]
[1642023721608,0.00113685,3375.4,3375.2,3.9622307]
[1642023723153,0.00113685,3375.4,3375.1,5.83729187]
[1642023723752,0.00113685,3375.4,3375.2,2.22166]
[1642023725360,0.00113685,3375.4,3375.2,3.22166]
[1642023725560,0.00113685,3375.4,3375.2,3.9622307]
[1642023726411,0.00113685,3375.4,3375.2,6.44103606]
[1642023726804,0.00113685,3375.4,3375.2,3.9622307]
[1642023727906,0.00113685,3375.4,3375.0,0.00113684]
[1642023728105,0.1184,3375.3,3375.0,0.00113684]
[1642023728307,0.1184,3375.3,3374.7,0.00284211]
[1642023728710,0.1184,3375.3,3374.4,2.8888409]
[1642023728711,0.1184,3375.3,3374.5,0.00397896]